Cogmind - Beta 17 @@@ ROGUE MODE // 2026.06.26 @ 12:18:31 Player: LN-5RVR Result: Destroyed self with Rocket Launcher Performance ------------- Evolutions (0) 0 Regions Visited (2) 400 Robots Destroyed (21) 105 Value Destroyed (379) 379 Prototype IDs (0) 0 Alien Tech Used (0) 0 Bonus (0) 0 TOTAL SCORE: 884 Bonus ------- None Cogmind --------- Core Integrity 0/250 Matter 228/300 Energy 100/100 System Corruption 10% Temperature Cool (0) Movement Hovering (77) Location -10/Mines Parts ------- > --- POWER (1) -------- (None) > --- PROPULSION (2) --- Combat Airjet Combat Airjet > --- UTILITY (2) ------ Hacking Suite > --- WEAPON (2) ------- Rocket Launcher > --- INVENTORY (5) ---- Hover Unit Flight Unit Huge Storage Unit Hacking Suite Datajack Peak State ------------ > --- POWER ------------ (None) > --- PROPULSION ------- Combat Airjet Combat Airjet > --- UTILITY ---------- Hacking Suite > --- WEAPON ----------- Rocket Launcher > --- INVENTORY -------- Hover Unit Flight Unit Huge Storage Unit Hacking Suite Datajack [Rating: 15] Favorites ----------- Power Light Ion Engine Engine Light Ion Engine Propulsion Aluminum Leg Treads Light Treads Leg Aluminum Leg Hover Unit Combat Airjet Flight Unit Flight Unit Utility Hacking Suite Storage Small Storage Unit Hackware Hacking Suite Weapon Medium Laser Energy Gun Medium Laser Ballistic Gun Light Assault Rifle Launcher Rocket Launcher Build | -11 -10 -10 ------- Run | Yrd Mat Min Slots Evolved . | . . . Power . | . . . Propulsion . | . . . Utility . | . . . Weapon . | . . . Parts Attached 17 | 8 3 6 Power 1 | 1 . . Engine 1 | 1 . . Core . | . . . Reactor . | . . . Propulsion 8 | 3 . 5 Treads 1 | 1 . . Leg 2 | 2 . . Wheel . | . . . Hover 4 | . . 4 Flight 1 | . . 1 Utility 4 | 1 3 . Device . | . . . Storage 3 | 1 2 . Processor . | . . . Hackware 1 | . 1 . Protection . | . . . Artifact . | . . . Weapon 4 | 3 . 1 Energy Gun 2 | 2 . . Energy Cannon . | . . . Ballistic Gun 1 | 1 . . Ballistic Cannon . | . . . Launcher 1 | . . 1 Special Weapon . | . . . Impact Weapon . | . . . Slashing Weapon . | . . . Piercing Weapon . | . . . Special Melee Weapon . | . . . Unidentified Prototypes . | . . . Parts Lost 8 | . 2 6 Power 1 | . 1 . Propulsion 4 | . 1 3 Utility 1 | . . 1 Weapon 2 | . . 2 Highest Loss Streak 6 | . 1 6 To Critical Strikes . | . . . Average Backups 6 | 1 6 5 Power . | . . . Propulsion 4 | 1 4 2 Utility 1 | . . 2 Weapon . | . . . Tool/Special . | . . . Unused Backups 6 | . 2 4 Power . | . . . Propulsion 4 | . 2 2 Utility 1 | . . 1 Weapon . | . . . Tool/Special 1 | . . 1 Average Slot Usage (%) 78 | . 83 56 Engine 3 | . 3 . Leg 19 | . 23 2 Hover 3 | . . 19 Storage 12 | . 14 4 Hackware 12 | . 12 14 Energy Gun 24 | . 28 6 Launcher 1 | . . 7 Peak Build Rating 15 | 6 9 15 Average Rating 8 | 4 8 12 On Entrance 4 | . 6 8 Avg Prop Armor Cover (%) 13 | . . 13 Naked Turns . | . . . Heaviest Build 12 | 12 12 9 Greatest Support 24 | 20 20 24 Greatest Overweight (x) 2 | . . 2 Average Overweight (x) . | . . . Largest Inventory Capacity 25 | 8 25 8 Average Capacity 7 | 7 8 5 Most Carried 9 | 2 9 8 Average Carried 6 | 1 6 5 Final Capacity 8 | 8 8 5 Final Carried 8 | 2 8 5 Class Distribution -------------------- 100% | Mutant Dominant Class ---------------- Mutant | -10/Materials Mutant | -10/Mines Resources | -11 -10 -10 ----------- Run | Yrd Mat Min Matter Collected 355 | 110 205 40 Remotely . | . . . Salvage Created 643 | . 617 26 Parts 44 | . 44 . Haulers Intercepted 1 | . 1 . Recyclers Shooed 1 | . 1 . Parts Field Recycled . | . . . Retrieved Matter . | . . . Parts Self-Destructed . | . . . Prevented . | . . . Parts Restored . | . . . Kills | -11 -10 -10 ------- Run | Yrd Mat Min Combat Hostiles Destroyed 17 | . 15 2 Guns 17 | . 15 2 Classes Destroyed 7 | . 6 1 Hauler 1 | . 1 . Recycler 1 | . 1 . Operator 2 | . 2 . Watcher 2 | . 2 . Swarmer 9 | . 9 . Grunt 6 | . 6 . Assembled 2 | . . 2 Best Kill Streak 6 | . 6 2 Combat Bots Only 6 | . 6 2 Max Kills in Single Turn 1 | . 1 1 Gunslinging . | . . . Exploded . | . . . Melee . | . . . Uniques/NPCs Destroyed . | . . . Combat | -11 -10 -10 -------- Run | Yrd Mat Min Hostile Shots Fired 115 | . 69 46 Missed 41 | . 22 19 Hits 74 | . 47 27 Melee 7 | . . 7 Projectile 67 | . 47 20 Damage Taken 953 | . 442 511 Core 264 | . 105 159 Absorbed by Shields . | . . . Core Remaining (%) 100 | 100 . . Volleys Fired 70 | . 62 8 Largest 2 | . 2 2 Hottest 100 | . 100 100 Shots Fired 134 | . 124 10 Gun 133 | . 124 9 Cannon . | . . . Launcher 1 | . . 1 Special . | . . . Kinetic . | . . . Thermal 133 | . 124 9 Explosive 1 | . . 1 Electromagnetic . | . . . Robot Hit Streak 6 | . 6 2 Robot Miss Streak 7 | . 7 1 Penetration Max . | . . . Secondary Targets 2 | . 2 . Max Gunslinging Chain 1 | . 1 . Shots Hit Robots 63 | . 57 6 Core Hits 39 | . 33 6 Critical Kills . | . . . Critical Parts Destroyed . | . . . Critical Strikes 11 | . 10 1 Burn 11 | . 10 1 Melee Attacks . | . . . Impact . | . . . Slashing . | . . . Piercing . | . . . Sneak Attacks . | . . . Combat Hostiles . | . . . Follow-up Attacks . | . . . Damage Inflicted 842 | . 762 80 Guns 817 | . 756 61 Cannons . | . . . Explosions 19 | . . 19 Melee . | . . . Ramming 6 | . 6 . Kinetic . | . . . Thermal 817 | . 756 61 Explosive 19 | . . 19 Electromagnetic . | . . . Impact . | . . . Slashing . | . . . Piercing . | . . . Highest Corruption 10 | . . 10 Average Corruption 9 | . . 9 Corruption Purged . | . . . Corruption Blocked . | . . . Effects 7 | . . 7 Matter Fused 5 | . . 5 Data Loss (major) 1 | . . 1 Misdirections 1 | . . 1 Overload Shots . | . . . Overflow Damage . | . . . Projectiles . | . . . Explosions . | . . . Melee . | . . . Knockbacks . | . . . Impact . | . . . Kinetic . | . . . Secondary . | . . . Self-Inflicted Damage 33 | . . 33 Shots 1 | . . 1 Rammed . | . . . Targets Rammed 2 | . 2 . Kicked 2 | . 2 . Crushed . | . . . Highest Temperature 312 | . 312 48 Average Temperature 80 | . 84 18 Received Heat Transfer 126 | . 117 9 Siege Activations . | . . . Martial Activations . | . . . Shielding Activations . | . . . Robots Disrupted . | . . . Combat Hostiles . | . . . Robots Corrupted . | . . . Combat Hostiles . | . . . Parts Fried . | . . . Impact Corruptions . | . . . Robots Melted . | . . . Combat Hostiles . | . . . Parts Melted 11 | . 11 . Heat Transferred 3256 | . 2997 259 Parts Sabotaged . | . . . Parts Stolen . | . . . Parts Stripped . | . . . Power Chain Reactions . | . . . Alert | -11 -10 -10 ------- Run | Yrd Mat Min Maximum Alert Level . | . . . Low Security (%) 100 | 100 100 100 Level 1 . | . . . Level 2 . | . . . Level 3 . | . . . Level 4 . | . . . Level 5 . | . . . High Security . | . . . Max Security . | . . . Peak Influence 173 | . 173 30 Initial 18 | . . 18 Average 46 | . 58 6 Influence Increases 479 | . 422 57 Destroy 0b10 Robot/C 300 | . 300 . Destroy 0b10 Robot/NC 30 | . 30 . Destroy Leader 76 | . 76 . Successful Hack 14 | . 14 . Destroy Structure 14 | . 2 12 Lose Combat Pursuer 45 | . . 45 Influence Decreases 442 | . 373 69 Entered New Map 31 | . . 31 Time Decay 383 | . 353 30 Lost Part 28 | . 20 8 Squads Dispatched 3 | . 3 . Investigation 1 | . 1 . Extermination . | . . . Reinforcement 2 | . 2 . Assault . | . . . Garrison . | . . . Intercept . | . . . Searches Triggered . | . . . Construction Impeded . | . . . Haulers Reinforced . | . . . Active Scanning Responses . | . . . Cargo Convoy Interrupts . | . . . Stealth | -11 -10 -10 --------- Run | Yrd Mat Min Distress Signals 1 | . 1 . Communications Jammed . | . . . Distress Signals . | . . . Times Spotted 36 | . 22 14 Peak Tracking Total 10 | . 3 10 Tactical Retreats 4 | . . 4 Traps | -11 -10 -10 ------- Run | Yrd Mat Min Traps Triggered . | . . . Indirectly . | . . . Trap Hack Attempts . | . . . Triggered . | . . . Disarmed . | . . . Reprogrammed . | . . . Reused . | . . . Traps Extracted . | . . . Installed . | . . . Triggered . | . . . Objects Rigged 1 | . 1 . Machines | -11 -10 -10 ---------- Run | Yrd Mat Min Machines Disabled 1 | . . 1 Max in Single Turn 1 | . . 1 Machines Repaired . | . . . Machines Dismantled . | . . . Machines Sabotaged . | . . . Overloaded Fab Kills . | . . . Hacking | -11 -10 -10 --------- Run | Yrd Mat Min Machines Accessed 5 | . 5 . Terminals 4 | . 4 . Fabricators . | . . . Repair Stations . | . . . Recycling Units 1 | . 1 . Scanalyzers . | . . . Garrison Access . | . . . Total Hacks 15 | . 15 . Successful 4 | . 4 . Failed 11 | . 11 . Catastrophic 4 | . 4 . Database Lockouts . | . . . Manual 15 | . 15 . Terminals 13 | . 13 . Fabricators . | . . . Repair Stations . | . . . Recycling Units 2 | . 2 . Scanalyzers . | . . . Garrison Access . | . . . Terminal Hacks 2 | . 2 . Branch Access Points 1 | . 1 . Alert Level 1 | . 1 . Fabricator Hacks . | . . . Repair Station Hacks . | . . . Recycling Unit Hacks . | . . . Scanalyzer . | . . . Garrison Access Hacks . | . . . Unauthorized Hacks 2 | . 2 . Terminals 2 | . 2 . Assimilate 1 | . 1 . Detonate 1 | . 1 . Fabricators . | . . . Repair Stations . | . . . Recycling Units . | . . . Scanalyzers . | . . . Garrison Access . | . . . Data Cores Recovered . | . . . Used . | . . . Hacking Detections 5 | . 5 . Full Trace Events 1 | . 1 . Feedback Events . | . . . Feedback Blocked . | . . . Robot Schematics Acquired . | . . . Robots Built . | . . . Authchips . | . . . Time . | . . . Total Robot Build Rating . | . . . Part Schematics Acquired . | . . . Parts Built . | . . . Authchips . | . . . Time . | . . . Total Part Build Rating . | . . . Part Studies Acquired . | . . . Parts Repaired . | . . . Time . | . . . Parts Recycled . | . . . Recycled Matter . | . . . Retrieved Matter . | . . . Retrieved Components . | . . . Parts Scanalyzed . | . . . Part Schematics Acquired . | . . . Parts Damaged . | . . . Bothacking | -11 -10 -10 ------------ Run | Yrd Mat Min Used RIF Installer . | . . . Robots Hacked . | . . . Non-combat . | . . . Combat . | . . . Robot Hacks Applied . | . . . Relay Couplers Released . | . . . Fabnet Peak Effective % . | . . . Robots Rewired . | . . . Allies Hacked . | . . . Hacks Repelled . | . . . Allies | -11 -10 -10 -------- Run | Yrd Mat Min Total Allies . | . . . Largest Group . | . . . Highest-Rated Group . | . . . Highest-Rated Ally . | . . . Total Orders . | . . . Ally Attacks . | . . . Total Damage . | . . . Kills . | . . . Allies Corrupted . | . . . Allies Melted . | . . . Intel | -11 -10 -10 ------- Run | Yrd Mat Min Active Infowar (turns) . | . . . Robot Analysis Total . | . . . Derelict Logs Recovered 1 | . . 1 Drone Launches . | . . . Drone Recoveries . | . . . Exploration | -11 -10 -10 ------------- Run | Yrd Mat Min Turns Passed 1426 | 82 1114 230 Spaces Moved 1020 | 59 688 273 Core 5 | 3 . 2 Treads . | . . . Legs 768 | 56 688 24 Wheels . | . . . Hover 191 | . . 191 Flight 56 | . . 56 Fastest Speed 40 | 50 120 40 Average Speed 107 | 116 120 73 Slowest Speed 150 | 120 120 150 Overloaded Moves . | . . . Propulsion Burnouts . | . . . Robots Hopped . | . . . Potential Cave-ins . | . . . Cave-ins Triggered . | . . . Exploration Rate (%) 44 | 4 64 65 Regions Visited 2 Branch Regions 1 Pre-discovered Areas . | . . . Known Exits Taken 1 | . 1 . Unknown Exits Taken 1 | 1 . . Scrap Searched . | . . . Spaces Dug . | . . . Terrain Destroyed 10 | . . 10 Melee . | . . . Projectile . | . . . AOE 10 | . . 10 Terrain Rammed . | . . . Walls Destroyed . | . . . Machines Disabled . | . . . Actions | -11 -10 -10 --------- Run | Yrd Mat Min Total 1214 | 69 853 292 Wait 87 | . 85 2 Move 1018 | 58 687 273 Hop . | . . . Pick Up 10 | 1 9 . Fast Attach 12 | 8 1 3 Attach 3 | . . 3 Detach 1 | 1 . . Swap 5 | . 3 2 Drop 6 | 1 4 1 Fire 70 | . 62 8 Melee . | . . . Ram . | . . . Kick 2 | . 2 . Crush . | . . . Escape Stasis . | . . . Rewire . | . . . Trap . | . . . Miscellaneous . | . . . Route ------- -11/Scrapyard -10/Materials (discovered 2 exits: [*Mat] / *Min) -10/Mines History --------- Turn | Location | Event 5 | -11/Scrapyard | Discovered new exit (range 16) 83 | -11/Scrapyard | Entered Materials 316 | -10/Materials | Build established: Mutant 869 | -10/Materials | Discovered new exit (range 16) 938 | -10/Materials | Discovered new exit (range 12) 1026 | -10/Materials | Identified exit to Mines 1197 | -10/Materials | Entered Mines 1198 | -10/Mines | Assembled infested the area 1203 | -10/Mines | Assisted by a Guerilla fighting off Assembled 1219 | -10/Mines | Met a Derelict bent on vengeance 1238 | -10/Mines | Core integrity fell below 50% 1251 | -10/Mines | System corruption reached 10% 1253 | -10/Mines | Core integrity fell below 20% 1281 | -10/Mines | Lost 6 parts (3n1u2w) 1306 | -10/Mines | Received a Rocket Launcher from a helpful Derelict 1427 | -10/Mines | Destroyed self with Rocket Launcher Last Messages --------------- rocket launcher goes a long way." 01304_ WU-GMV(g): "Need to get rid of a swarm? Done. Need a big hole in the wall? Done." 01305_ WU-GMV(g): "Need a small hole in the wall? Leave that to the mining laser wimps, I say!" 01306_ WU-GMV(g): "Would you like a rocket launcher? I know I would if I were you, so I'm going to lend you mine." 01306_ WU-GMV(g) slips back into the shadows. 01307_ Acquired Rocket Launcher. 01328_ System corrupted: Substantial component data lost. 01349_ System corrupted: Matter fused (-9). 01368_ System corrupted: Matter fused (-7). 01385_ System corrupted: Matter fused (-6). 01403_ System corrupted: Matter fused (-9). 01412_ Acquired derelict log, extracted data. Data stored: Mines entrances (x2). 01427_ Machine disabled. Map ----- +----------------------------------------------------+ | | | | | ?????????????????????????????????? | | ???####??????????????????????????? | | ??## ##?????????????????????????? | | ??# ###???????????????????????? | | ?## ##????#####?????????????? | | ## ##??## ######????????? | | # #### #????????? | | ## ## #????????? | | ### #????????? | | ## #####?# #????????? | | #### ## ##?????# ##???????? | | #??########??????# # ???????? | | #????????????????# ???????? | | ##????????????????# #??????? | | ##????????????????## #??????? | | ##????????????????## ####???? | | #?????????????????# ##??? | | #?????????????????? #??? | | #?????????????????## Y #??? | | #?????????????????# # #???? | | #????????????????## Y # ##??? | | #????????????????# ##?? | | ##????????????????# ! #?? | | ##????????????????# !! @ #?? | | #####????????????##"" # #?? | | #?????????????##" ## #?? | | ### #??????????????#### #?? | | ##?# #?????????????????## ##?? | | #### ## ################## ###??? | | # ## #????? | | # ########### ############ #????? | | # ########### #??????????# #????? | | #??????????# #????? | | ###############??????????# ????? | | ?????????????????????????# ???? | | ????????????????????????? ??? | | ????????????????????????? ?? | | ????????????????????????? ?? | | ????????????????????????? ##? | | ????????????????????????? #?? | | ????????????????????????? ##?? | | ????????????????????????? ###??? | | ????????????????????????? #?????? | | ????????????????????????? #??????? | | ????????????????????????? ???????? | | ?????????????????????????????????? | | ?????????????????????????????????? | | ?????????????????????????????????? | +----------------------------------------------------+ Best States ------------- Heat Dissipation 25 Energy Generation 10 Energy Capacity 125 Matter Stores 300 Matter Capacity 300 Sight Range 16 Terrain Scan Density 10 Evasion (%) 62 Offensive Hacking 10 Item Schematics ----------------- None Robot Schematics ------------------ None Fabricated ------------ Nothing Repaired ---------- Nothing Studied --------- None Alien Tech Used ----------------- None Achievements -------------- None Challenges ------------ None Game ------ Seed ModifiedTripodPit Manual? 0 Play Time 00:17:52 Cumulative 41.0 hours Start 2026.06.26 @ 01:10:45 End 2026.06.26 @ 12:18:31 Sessions 4 Manual Loads 0 Difficulty Rogue Special Mode None Game No. 58 Rogue 26 Adventurer 32 Explorer 0 Win Type - Total 0 Types 0/0/0/0/0/0/0/0/0/0 Lore% 15 Gallery% 22 Achievement% 16 Wizard Run 0 Options --------- Layout 1 ASCII 0 Keyboard 0 Movement Numpad Keybinds 0 Fullscreen 1 Font 24/Smallcaps Map View 50x35 Zoom Use 0% Tactical HUD 1 Map Filters NONE Filters NONE Steam 1 RUN: aeaae3d2-2e31-4322-976b-fde4035a902a